bitfinex/quotes_BTCUSD_20230110
["timestamp","ask_amount","ask_price","bid_price","bid_amount"]
[1673363396658,4.85441965,17307.0,17306.0,0.44706932]
[1673363397166,4.50822142,17307.0,17306.0,0.44706932]
[1673363397432,4.8544078,17307.0,17306.0,0.44706932]
[1673363397691,4.5241419,17307.0,17306.0,0.44706932]
[1673363397966,4.35095756,17307.0,17306.0,0.44706932]
[1673363398217,4.78371708,17307.0,17306.0,0.44706932]
[1673363398472,4.5241419,17307.0,17306.0,0.44706932]
[1673363398995,4.1630899,17307.0,17306.0,0.44706932]
[1673363399256,4.5241419,17307.0,17306.0,0.44706932]
[1673363399504,3.98985302,17307.0,17306.0,0.44706932]
[1673363399765,3.02212828,17307.0,17306.0,0.44706932]
[1673363400024,2.228544,17307.0,17306.0,0.44706932]
[1673363400276,0.87263576,17307.0,17306.0,0.44706932]
[1673363400799,0.76073576,17307.0,17306.0,0.44706932]
[1673363401055,0.21537411,17308.0,17306.0,1.70750766]
[1673363401322,0.122,17307.0,17306.0,1.71350766]
[1673363401575,0.122,17307.0,17306.0,2.29984166]
[1673363401847,0.122,17307.0,17306.0,2.29712766]
[1673363402330,0.87887799,17308.0,17306.0,2.29112766]
[1673363402589,0.88387799,17308.0,17306.0,2.33412766]
[1673363402841,0.88387799,17308.0,17306.0,2.29112766]
[1673363403091,0.122,17307.0,17306.0,2.29712766]
[1673363403351,0.122,17307.0,17306.0,2.90252332]
[1673363403599,0.122,17307.0,17306.0,3.07923601]
[1673363403851,0.122,17307.0,17306.0,3.93680505]
[1673363404129,0.01537411,17308.0,17307.0,0.57903899]
[1673363404414,0.04937411,17308.0,17307.0,1.74313899]
[1673363405383,0.01537411,17308.0,17307.0,1.74313899]
[1673363405904,0.02737411,17308.0,17307.0,1.80313899]
[1673363406154,0.70608104,17308.0,17307.0,1.16533899]
[1673363406640,0.71108104,17308.0,17307.0,0.0515]
[1673363406696,0.71108104,17308.0,17307.0,0.043]
[1673363407456,0.91108104,17308.0,17307.0,0.043]
[1673363407712,2.46291518,17308.0,17307.0,0.043]
[1673363408012,2.82396718,17308.0,17307.0,0.043]
[1673363408276,3.08348982,17308.0,17307.0,0.043]
[1673363408793,2.82396718,17308.0,17307.0,0.043]
[1673363409053,2.28990554,17308.0,17307.0,0.043]
[1673363409309,1.13398104,17308.0,17307.0,0.043]
[1673363409609,0.71108104,17308.0,17307.0,0.043]
[1673363409835,0.71108104,17308.0,17307.0,0.61487359]
[1673363409836,0.02037411,17308.0,17307.0,0.61487359]
[1673363410656,0.02037411,17308.0,17307.0,1.19267359]
[1673363412270,0.02037411,17308.0,17307.0,1.68566269]
[1673363413841,0.01710766,17309.0,17308.0,3.55409577]
[1673363414102,0.01710766,17309.0,17308.0,3.38219835]
[1673363414368,0.04810766,17309.0,17308.0,2.92001154]
[1673363414648,0.04810766,17309.0,17308.0,4.43243842]
[1673363414923,0.04810766,17309.0,17308.0,4.43262045]
[1673363415185,0.04810766,17309.0,17308.0,4.03120927]
[1673363415470,0.04810766,17309.0,17308.0,4.37188735]
[1673363415729,0.02810766,17309.0,17308.0,4.66731568]
[1673363416228,0.01710766,17309.0,17308.0,4.64180474]
[1673363416506,0.02810766,17309.0,17308.0,4.71080474]
[1673363416779,0.00702257,17309.0,17308.0,4.47908593]
[1673363417299,0.01833036,17310.0,17308.0,3.98118742]
[1673363417577,0.01,17309.0,17308.0,3.33371992]
[1673363417840,0.01,17309.0,17308.0,5.44717243]
[1673363418091,0.01,17309.0,17308.0,5.61882645]
[1673363418337,0.01833036,17310.0,17308.0,6.14077412]
[1673363418652,0.02833036,17310.0,17309.0,1.87065508]
[1673363418901,0.02833036,17310.0,17309.0,3.03462308]
[1673363418902,0.01833036,17310.0,17309.0,3.03462308]
[1673363419615,0.01833036,17310.0,17309.0,3.07811214]
[1673363419895,0.01833036,17310.0,17309.0,2.10165371]
[1673363420135,0.01833036,17310.0,17309.0,2.5023907]
[1673363420385,0.02833036,17310.0,17309.0,2.5743907]
[1673363420638,0.02833036,17310.0,17309.0,2.83152486]
[1673363420892,0.02833036,17310.0,17309.0,3.34860986]
[1673363421190,0.02833036,17310.0,17309.0,2.71513556]
[1673363421428,0.02833036,17310.0,17309.0,1.99184985]
[1673363421667,0.02833036,17310.0,17309.0,1.8800606]
[1673363422973,0.02833036,17310.0,17309.0,1.8885606]
[1673363424284,0.02833036,17310.0,17309.0,2.1885606]
[1673363424548,0.02833036,17310.0,17309.0,1.53607875]
[1673363424808,0.02833036,17310.0,17309.0,1.64787875]
[1673363425144,0.02833036,17310.0,17309.0,2.18141921]
[1673363425615,0.02812289,17310.0,17309.0,2.18121999]
[1673363427931,0.02812289,17310.0,17309.0,2.06941999]
[1673363428178,0.02812289,17310.0,17309.0,1.76941999]
[1673363430238,0.02812289,17310.0,17309.0,1.76941473]
[1673363430738,0.02812289,17310.0,17309.0,1.75441473]
[1673363432539,0.02812289,17310.0,17309.0,2.05441473]
[1673363433096,0.04716435,17310.0,17309.0,2.05441473]
[1673363434358,0.04716435,17310.0,17309.0,2.63277427]
[1673363434610,0.01710766,17311.0,17310.0,0.37210132]
[1673363434860,0.01710766,17311.0,17310.0,2.22333625]
[1673363435121,0.01710766,17311.0,17310.0,2.53183625]
[1673363435399,1.68171546,17314.0,17310.0,2.32498625]
[1673363435662,2.2924853,17314.0,17311.0,0.23767789]
[1673363435904,2.2924853,17314.0,17311.0,0.81533789]
[1673363436403,2.2924853,17314.0,17311.0,1.39300489]
[1673363436629,2.2924853,17314.0,17312.0,0.64629779]
[1673363436887,0.59962721,17313.0,17311.0,1.155327]
[1673363437416,0.2,17312.0,17311.0,1.95303258]
[1673363437672,0.2,17312.0,17311.0,1.87203258]
[1673363437973,1.69171546,17314.0,17311.0,1.87203258]
[1673363438175,1.69171546,17314.0,17311.0,2.10971047]
[1673363438429,0.67495251,17313.0,17311.0,1.87182614]
[1673363438694,0.2,17312.0,17311.0,1.87182614]
[1673363438952,0.68495251,17313.0,17311.0,1.95282614]
[1673363439267,0.67495251,17313.0,17311.0,1.87182614]
[1673363439472,0.67495251,17313.0,17311.0,1.95282614]
[1673363439719,1.68171546,17314.0,17311.0,2.10950403]
[1673363439989,1.68171546,17314.0,17312.0,0.50572653]
[1673363440247,1.68171546,17314.0,17312.0,1.08334453]
[1673363440503,0.01,17313.0,17312.0,1.66097853]
[1673363440776,1.68171546,17314.0,17312.0,1.66097853]
[1673363441008,2.24732351,17314.0,17312.0,1.66097853]
[1673363442055,2.24732351,17314.0,17313.0,0.54499018]
[1673363442056,0.02711546,17314.0,17313.0,0.54499018]
[1673363442311,0.01711546,17314.0,17313.0,2.12059018]
[1673363442601,0.02211546,17314.0,17313.0,3.32059018]
[1673363442857,0.00841108,17314.0,17313.0,3.32059018]
[1673363443125,0.00841108,17314.0,17313.0,3.8448988]
[1673363443387,0.00341108,17314.0,17313.0,3.55645744]
[1673363443656,0.01341108,17314.0,17313.0,3.55645744]
[1673363443906,0.00341108,17314.0,17313.0,3.55645744]
[1673363444158,0.01241108,17314.0,17313.0,3.63845744]
[1673363444978,0.00341108,17314.0,17313.0,3.55645744]
[1673363445230,0.01241108,17314.0,17313.0,3.63845744]
[1673363445477,0.00341108,17314.0,17313.0,3.55645744]
[1673363445739,0.01241108,17314.0,17313.0,3.69785409]
[1673363445995,0.01241108,17314.0,17313.0,3.52655744]
[1673363446241,0.00341108,17314.0,17313.0,3.61585409]
[1673363446504,0.01241108,17314.0,17313.0,4.29785409]
[1673363446754,0.01241108,17314.0,17313.0,4.11041788]
[1673363447074,0.01241108,17314.0,17313.0,3.99773081]
[1673363447254,0.01241108,17314.0,17313.0,3.74059665]
[1673363447521,0.01241108,17314.0,17313.0,4.10991935]
[1673363447792,0.01241108,17314.0,17313.0,5.11216072]
[1673363448581,0.01241108,17314.0,17313.0,5.28382377]
[1673363448807,0.01241108,17314.0,17313.0,5.1120596]
[1673363449054,0.01241108,17314.0,17313.0,5.28382377]
[1673363449569,0.01241108,17314.0,17313.0,5.24033471]
[1673363449833,0.01840682,17315.0,17314.0,0.15949988]
[1673363450081,0.01840682,17315.0,17314.0,2.57046763]
[1673363450334,0.01840682,17315.0,17314.0,4.06909202]
[1673363450589,0.01840682,17315.0,17314.0,3.72646757]
[1673363451342,0.02640682,17315.0,17314.0,4.16710104]
[1673363451598,0.02640682,17315.0,17314.0,4.1668738]
[1673363451853,0.02640682,17315.0,17314.0,3.82446757]
[1673363452102,0.02640682,17315.0,17314.0,4.16697543]
[1673363452353,0.02640682,17315.0,17314.0,4.12347118]
[1673363452609,0.02640682,17315.0,17314.0,4.16696024]
[1673363453123,0.02640682,17315.0,17314.0,3.82446757]
[1673363453405,0.02640682,17315.0,17314.0,5.10375523]
[1673363453652,0.02640682,17315.0,17314.0,5.00225038]
[1673363453913,0.02640682,17315.0,17314.0,4.64816378]
[1673363454424,0.53543569,17320.0,17317.0,0.01650544]
[1673363454725,0.53543569,17320.0,17318.0,0.24617789]
[1673363454929,0.53543569,17320.0,17318.0,2.02045919]
[1673363455439,0.54043569,17320.0,17318.0,2.02045919]
[1673363455689,0.54043569,17320.0,17319.0,0.00696621]
[1673363455946,0.53543569,17320.0,17319.0,1.17026621]
[1673363456195,0.03263811,17320.0,17319.0,1.17026621]
[1673363456682,0.03263811,17320.0,17319.0,1.47026621]
[1673363457311,0.03263811,17320.0,17319.0,1.17026621]
[1673363457742,0.01863811,17320.0,17319.0,2.06032459]
[1673363458000,0.10463811,17320.0,17319.0,2.06832459]
[1673363458513,0.10463811,17320.0,17319.0,1.76832459]
[1673363458786,0.10463811,17320.0,17319.0,2.06832459]
[1673363459783,0.10463811,17320.0,17319.0,1.76832459]
[1673363460805,0.10463811,17320.0,17319.0,2.18022459]
[1673363461572,0.10463811,17320.0,17319.0,2.06832459]
[1673363461814,0.10463811,17320.0,17319.0,2.18022459]
[1673363462333,0.10463811,17320.0,17319.0,1.70146621]
[1673363462586,0.10463811,17320.0,17319.0,2.30146621]
[1673363463132,0.10463811,17320.0,17319.0,2.34527571]
[1673363464381,0.01863811,17320.0,17319.0,2.33727571]
[1673363464645,0.02563811,17320.0,17319.0,2.3689179]
[1673363464905,0.02563811,17320.0,17319.0,1.8457179]
[1673363466973,0.02563811,17320.0,17319.0,2.1457179]
[1673363467222,0.04104238,17320.0,17319.0,2.1457179]
[1673363467493,0.03404238,17320.0,17319.0,2.0407179]
[1673363467774,0.04304238,17320.0,17319.0,2.1287179]
[1673363468006,0.03404238,17320.0,17319.0,2.0407179]
[1673363468258,0.03367586,17320.0,17319.0,1.8287179]
[1673363468513,0.03367586,17320.0,17319.0,1.82860169]
[1673363469540,0.03367586,17320.0,17319.0,1.23585169]
[1673363469795,0.03367586,17320.0,17319.0,0.65845169]
[1673363470331,0.18315586,17320.0,17319.0,0.65845169]
[1673363470593,0.79154922,17320.0,17319.0,0.088]
[1673363471374,1.32669212,17320.0,17319.0,0.088]
[1673363471659,1.32669212,17320.0,17317.0,0.01650544]
[1673363471660,1.25530122,17320.0,17317.0,0.01650544]
[1673363471892,0.1119,17319.0,17317.0,0.01650544]
[1673363472144,0.1119,17319.0,17317.0,0.00150544]
[1673363472145,0.361052,17318.0,17317.0,0.00150544]
[1673363472428,0.57532754,17319.0,17317.0,0.00150544]
[1673363472722,0.63234252,17318.0,17317.0,0.00150544]
[1673363472928,1.19339452,17318.0,17317.0,0.00150544]
[1673363473187,0.83234252,17318.0,17317.0,0.00150544]
[1673363473988,0.83234252,17318.0,17317.0,0.09050544]
[1673363474242,0.83234252,17318.0,17317.0,0.00150544]
[1673363474489,0.84134252,17318.0,17317.0,0.09050544]
[1673363475003,1.64127552,17318.0,17317.0,0.09050544]
[1673363475249,2.52274554,17318.0,17317.0,0.09050544]
[1673363475508,2.64747525,17318.0,17317.0,0.09050544]
[1673363476288,2.07004225,17318.0,17317.0,0.09081072]
[1673363476602,2.07004225,17318.0,17317.0,0.09050544]
[1673363477050,1.38070925,17318.0,17317.0,0.09050544]
[1673363477346,1.01965725,17318.0,17317.0,0.09050544]
[1673363478164,0.81965725,17318.0,17317.0,0.09050544]
[1673363478480,0.009,17318.0,17317.0,0.09050544]
[1673363478724,0.009,17318.0,17317.0,1.22840803]
[1673363483185,0.5750052,17318.0,17317.0,1.22840803]
[1673363484081,0.009,17318.0,17317.0,1.22840803]
[1673363485176,0.009,17318.0,17317.0,0.66797244]
[1673363485644,0.00906691,17318.0,17317.0,0.66797244]
[1673363485861,0.00906691,17318.0,17317.0,1.24543944]
[1673363486748,0.00906691,17318.0,17317.0,1.24555566]
[1673363487224,0.00906691,17318.0,17317.0,1.24543944]
[1673363487656,0.00906691,17318.0,17317.0,0.66808866]
[1673363489485,0.00906691,17318.0,17317.0,0.66297244]
[1673363489699,0.00906691,17318.0,17317.0,1.29711727]
[1673363489918,0.00906691,17318.0,17317.0,2.59274894]
[1673363490132,0.00906691,17318.0,17317.0,2.76390798]
[1673363490353,0.00927159,17320.0,17318.0,0.20279399]
[1673363490569,0.00927159,17320.0,17319.0,1.1633]
[1673363491244,0.00927159,17320.0,17319.0,1.97479456]
[1673363491910,0.00927159,17320.0,17319.0,2.18369977]
[1673363492113,0.00927159,17320.0,17319.0,2.01244049]
[1673363492333,0.00927159,17320.0,17319.0,1.85244049]
[1673363492547,0.00927159,17320.0,17319.0,2.01244049]
[1673363492760,0.00927159,17320.0,17319.0,2.15144049]
[1673363492979,0.00927159,17320.0,17319.0,2.0125567]
[1673363493527,0.00927159,17320.0,17319.0,1.8515567]
[1673363493741,0.00927159,17320.0,17319.0,2.1515567]
[1673363495253,0.00927159,17320.0,17319.0,1.8515567]
[1673363495482,0.00927159,17320.0,17319.0,2.1515567]
[1673363495769,0.00927159,17320.0,17319.0,1.8430567]
[1673363496005,0.75797444,17320.0,17319.0,0.139]
[1673363496249,0.64607444,17320.0,17319.0,0.13911621]
[1673363496489,0.64607444,17320.0,17319.0,0.139]
[1673363497218,0.75297444,17320.0,17319.0,0.139]
[1673363497487,1.11402644,17320.0,17319.0,0.139]
[1673363498201,0.75297444,17320.0,17319.0,0.139]
[1673363498685,1.11402644,17320.0,17319.0,0.00011621]
[1673363498916,0.75497444,17320.0,17318.0,0.00279399]
[1673363499159,0.75297444,17320.0,17318.0,0.75891897]
[1673363499405,0.64307444,17320.0,17319.0,0.14]
[1673363499643,0.64107444,17320.0,17319.0,0.57751621]
[1673363499891,0.64307444,17320.0,17319.0,0.57751621]
[1673363500349,0.00627159,17320.0,17319.0,0.57751621]
[1673363500595,0.00427159,17320.0,17319.0,1.35491621]
[1673363500875,0.00427159,17320.0,17319.0,1.93279265]
[1673363501108,0.00427159,17320.0,17319.0,2.23279265]
[1673363501344,0.00427159,17320.0,17319.0,2.24129265]
[1673363501840,0.00527159,17320.0,17319.0,2.38229265]
[1673363502120,0.00527159,17320.0,17319.0,2.08229265]
[1673363502583,0.00527159,17320.0,17319.0,2.38229265]
[1673363503539,0.00527159,17320.0,17319.0,1.88217644]
[1673363507145,0.00527159,17320.0,17319.0,1.88229265]
[1673363508337,0.00527159,17320.0,17319.0,1.88217644]
[1673363508637,0.63013252,17320.0,17319.0,1.88217644]
[1673363509139,0.00527159,17320.0,17319.0,1.88217644]
[1673363509645,0.00527159,17320.0,17319.0,1.88229265]
[1673363510407,0.00527159,17320.0,17319.0,2.18229265]
[1673363510920,0.00527159,17320.0,17319.0,1.88229265]
[1673363511163,0.00527159,17320.0,17319.0,2.18229265]
[1673363512931,0.00527159,17320.0,17319.0,1.77567549]
[1673363513180,0.00527159,17320.0,17319.0,3.52990793]
[1673363513427,0.02510686,17321.0,17320.0,0.13729626]
[1673363513676,0.02510686,17321.0,17320.0,2.47290093]
[1673363513926,0.02523497,17321.0,17320.0,2.47290093]
[1673363514801,0.02523497,17321.0,17320.0,2.46771874]
[1673363514985,0.02523497,17321.0,17320.0,2.26771874]
[1673363515238,0.02523497,17321.0,17320.0,2.35271874]
[1673363516247,0.02523497,17321.0,17320.0,1.92060467]
[1673363516496,0.02523497,17321.0,17320.0,1.91375467]
[1673363516743,0.02523497,17321.0,17320.0,1.248234]
[1673363517248,0.02523497,17321.0,17320.0,0.670867]
[1673363520116,0.02523497,17321.0,17320.0,0.67319125]
[1673363520361,0.02523497,17321.0,17320.0,0.670867]
[1673363522164,0.02523497,17321.0,17320.0,1.248234]
[1673363522429,0.02523497,17321.0,17320.0,1.7833886]
[1673363524418,0.02523497,17321.0,17320.0,1.7748886]
[1673363525164,0.02523497,17321.0,17320.0,1.7750048]
[1673363526193,0.02523497,17321.0,17320.0,1.94626408]
[1673363526696,0.02523497,17321.0,17320.0,2.24626408]
[1673363526945,0.02523497,17321.0,17320.0,3.34464738]
[1673363527194,0.02523497,17321.0,17320.0,3.09249131]
[1673363527695,0.02523497,17321.0,17320.0,3.131929]
[1673363527942,0.02523497,17321.0,17320.0,3.09705981]
[1673363528200,0.02523497,17321.0,17320.0,2.58716049]
[1673363528453,0.02523497,17321.0,17320.0,3.19799324]
[1673363528747,0.02523497,17321.0,17320.0,3.33699324]
[1673363528975,0.01112147,17321.0,17320.0,3.33699324]
[1673363529271,0.01112147,17321.0,17320.0,2.9840824]
[1673363529533,0.01112147,17321.0,17320.0,2.98408494]
[1673363529787,0.01112147,17321.0,17320.0,2.64116049]
[1673363530593,0.01112147,17321.0,17320.0,2.68375611]
[1673363530846,0.01112147,17321.0,17320.0,3.14718365]
[1673363531642,0.01112147,17321.0,17320.0,2.67602968]
[1673363531909,0.01112147,17321.0,17320.0,2.7186253]
[1673363532939,0.01112147,17321.0,17320.0,3.14697081]
[1673363533476,0.01953823,17324.0,17322.0,0.00307534]
[1673363533732,0.01953823,17324.0,17323.0,1.36148914]
[1673363534237,0.01953823,17324.0,17323.0,1.66148914]
[1673363534238,0.01953823,17324.0,17323.0,1.83279158]
[1673363534744,0.01953823,17324.0,17323.0,1.97279158]
[1673363535295,0.000815,17325.0,17323.0,4.7625602]
[1673363535542,0.42492287,17329.0,17324.0,3.22277446]
[1673363535543,0.92461531,17329.0,17324.0,3.22277446]
[1673363535826,0.92461531,17329.0,17327.0,0.2]
[1673363535827,0.25191323,17329.0,17327.0,0.2]
[1673363536075,0.25191323,17329.0,17328.0,1.29702511]
[1673363536337,0.25191323,17329.0,17328.0,1.743203]
[1673363536592,0.25191323,17329.0,17328.0,1.80552511]
[1673363536843,0.81620371,17330.0,17328.0,1.80552511]
[1673363537117,0.27189044,17330.0,17329.0,0.3085]
[1673363537355,0.27189044,17330.0,17329.0,1.085567]
[1673363538113,0.27189044,17330.0,17329.0,1.86039454]
[1673363538383,0.27189044,17330.0,17329.0,2.00039454]
[1673363538629,0.000815,17331.0,17329.0,3.89048935]
[1673363538881,0.000815,17331.0,17330.0,2.24244686]
[1673363539245,0.000815,17331.0,17330.0,2.58885526]
[1673363539423,0.000815,17331.0,17330.0,2.1969362]
[1673363539672,0.000815,17331.0,17330.0,2.2054362]
[1673363539921,0.61451332,17335.0,17331.0,0.2]
[1673363540181,0.61451332,17335.0,17330.0,1.79802791]
[1673363540182,0.01374592,17331.0,17330.0,1.79802791]
[1673363540478,0.01374592,17331.0,17330.0,0.89682481]
[1673363540696,0.01374592,17331.0,17330.0,2.47385881]
[1673363540976,0.01374592,17331.0,17330.0,2.61185881]
[1673363541206,1.3476,17334.0,17330.0,2.47385881]
[1673363541207,1.1476,17334.0,17330.0,2.47385881]
[1673363541461,1.1476,17334.0,17331.0,0.53767789]
[1673363541734,1.1476,17334.0,17332.0,0.576967]
[1673363542263,1.11615541,17334.0,17332.0,0.576967]
[1673363542533,1.11615541,17334.0,17332.0,1.153934]
[1673363542783,1.11615541,17334.0,17332.0,2.153934]
[1673363543065,1.11615541,17334.0,17333.0,0.2]
[1673363543320,1.11615541,17334.0,17333.0,1.653868]
[1673363543598,0.02151005,17335.0,17333.0,1.662368]
[1673363543852,0.02151005,17335.0,17334.0,1.24617789]
[1673363544103,0.02151005,17335.0,17334.0,1.76832312]
[1673363544383,2.02262011,17340.0,17334.0,3.7548704]
[1673363544651,2.02262011,17340.0,17339.0,1.2]
[1673363544933,0.35947975,17348.0,17339.0,1.4223]
[1673363545196,1.44314798,17349.0,17343.0,0.2]
[1673363545446,1.44314798,17349.0,17341.0,0.2]
[1673363545447,0.7119,17346.0,17341.0,0.2]
[1673363545737,0.2,17347.0,17343.0,0.2]
[1673363546000,0.22,17347.0,17340.0,0.785183]
[1673363546275,0.8,17347.0,17340.0,0.92513314]
[1673363546529,0.361052,17346.0,17341.0,0.23767789]
[1673363546775,0.361052,17345.0,17341.0,0.83123229]
[1673363547262,0.472952,17344.0,17343.0,0.139]
[1673363547789,0.695852,17344.0,17343.0,0.139]
[1673363548068,0.895852,17344.0,17343.0,0.139]
[1673363548324,0.895852,17344.0,17341.0,0.5397765]
[1673363548579,0.895852,17344.0,17340.0,0.63624257]
[1673363548580,0.961052,17343.0,17340.0,0.63624257]
[1673363548865,1.41470387,17344.0,17340.0,0.63624257]
[1673363548866,0.696752,17342.0,17340.0,0.23767789]
[1673363549134,0.51810381,17343.0,17341.0,0.56203047]
[1673363549396,0.95599961,17342.0,17341.0,0.56203047]
[1673363549733,0.95599961,17342.0,17341.0,0.79970836]
[1673363549734,0.361052,17342.0,17341.0,0.79970836]
[1673363549980,1.88234398,17344.0,17341.0,0.86203047]
[1673363550216,0.68655682,17345.0,17343.0,1.0]
[1673363550471,0.60809044,17344.0,17342.0,0.0085]
[1673363550715,0.95961406,17343.0,17341.0,3.06703122]
[1673363550972,0.1118,17345.0,17341.0,2.92803122]
[1673363551207,0.60113378,17344.0,17343.0,0.139]
[1673363551705,0.60113378,17344.0,17342.0,2.69467593]
[1673363552193,0.60113378,17344.0,17341.0,1.60864611]
[1673363552980,0.472952,17343.0,17340.0,0.61948601]
[1673363553221,0.361052,17342.0,17340.0,0.61948601]
[1673363553472,0.1119,17343.0,17340.0,0.61948601]
[1673363553727,0.1119,17343.0,17341.0,0.139]
[1673363553965,0.2,17341.0,17340.0,0.61960255]
[1673363554215,0.61781605,17342.0,17340.0,0.75848601]
[1673363554455,0.2,17341.0,17340.0,0.61851445]
[1673363554701,0.61781605,17342.0,17341.0,0.14]
[1673363554969,0.61781605,17342.0,17340.0,1.56255747]
[1673363555213,0.61781605,17342.0,17340.0,1.70155747]
[1673363555709,0.61781605,17342.0,17340.0,0.70155747]
[1673363555950,0.79562605,17342.0,17340.0,0.70144093]
[1673363556214,0.79562605,17342.0,17340.0,0.56244093]
[1673363556476,0.79562605,17342.0,17341.0,0.14]
[1673363556716,0.79562605,17342.0,17340.0,0.56244093]
[1673363556957,0.2,17341.0,17340.0,0.70144093]
[1673363557204,0.3119,17341.0,17338.0,0.61603385]
[1673363557449,0.1119,17339.0,17338.0,0.61603385]
[1673363557939,0.1119,17339.0,17338.0,0.61505848]
[1673363558431,0.1119,17339.0,17335.0,2.62506074]
[1673363558684,0.1119,17338.0,17337.0,0.57992837]
[1673363558946,0.2234,17338.0,17337.0,0.57992837]
[1673363559433,0.584452,17338.0,17335.0,0.02602423]
[1673363559677,0.2238,17336.0,17335.0,0.70704305]
[1673363559958,0.784852,17336.0,17335.0,0.70607956]
[1673363560199,0.784852,17336.0,17335.0,0.02506074]
[1673363560701,0.784852,17336.0,17335.0,0.77779314]
[1673363560942,0.4238,17336.0,17335.0,0.63879314]
[1673363561180,0.784852,17336.0,17335.0,0.63879314]
[1673363561663,0.8833372,17336.0,17335.0,0.63879314]
[1673363561926,0.8833372,17336.0,17335.0,0.16506074]
[1673363561927,0.784852,17336.0,17335.0,0.16506074]
[1673363562166,0.784852,17336.0,17335.0,0.40273863]
[1673363562426,0.784852,17336.0,17335.0,0.81543187]
[1673363562427,0.672952,17336.0,17335.0,0.81543187]
[1673363562667,0.672952,17336.0,17335.0,0.67543187]
[1673363562668,0.2,17336.0,17335.0,0.67543187]
[1673363563386,0.79850244,17337.0,17335.0,1.41643187]
[1673363564383,0.79850244,17337.0,17335.0,0.81643187]
[1673363564613,0.79850244,17337.0,17335.0,1.39329687]
[1673363565132,0.59850244,17337.0,17336.0,0.567279]
[1673363565366,0.99251038,17338.0,17336.0,0.567279]
[1673363565600,0.99251038,17338.0,17336.0,1.144107]
[1673363565837,0.99251038,17338.0,17336.0,0.576828]
[1673363565838,0.61345204,17337.0,17336.0,0.576828]
[1673363566099,0.50549378,17336.0,17335.0,1.31477474]
[1673363566343,0.50549378,17336.0,17335.0,1.17377474]
[1673363566831,0.61739378,17336.0,17335.0,0.02006074]
[1673363567780,0.61739378,17336.0,17335.0,0.59692774]
[1673363568049,0.1119,17336.0,17335.0,1.55064987]
[1673363568286,1.031,17339.0,17335.0,1.57804307]
[1673363568287,1.6313805,17339.0,17335.0,1.57804307]
[1673363568556,0.1119,17340.0,17336.0,0.23767789]
[1673363568796,0.2,17340.0,17338.0,0.2]
[1673363569043,0.57707923,17341.0,17339.0,1.99114589]
[1673363570090,0.1119,17344.0,17339.0,2.99114589]
[1673363570345,2.24873,17347.0,17341.0,0.6]
[1673363570605,0.65851589,17345.0,17342.0,1.69089389]
[1673363570876,0.2,17344.0,17342.0,1.39089389]
[1673363571147,0.57540867,17345.0,17342.0,1.39089389]
[1673363571404,0.57540867,17345.0,17342.0,1.50279389]
[1673363571676,0.57540867,17345.0,17343.0,0.9]
[1673363571920,0.61975961,17349.0,17344.0,1.153136]
[1673363571921,0.22294426,17347.0,17344.0,1.153136]
[1673363572187,0.55240682,17345.0,17344.0,1.39081389]
[1673363572492,0.55240682,17345.0,17344.0,1.153136]
[1673363572697,0.51470552,17345.0,17344.0,0.576568]
[1673363572950,0.51470552,17345.0,17344.0,0.57681128]
[1673363573220,0.62660552,17345.0,17344.0,0.14]
[1673363573475,0.472952,17345.0,17344.0,0.14]
[1673363573982,0.472952,17345.0,17341.0,1.69298033]
[1673363574198,0.3111,17346.0,17341.0,1.69298033]
[1673363574199,0.472952,17344.0,17341.0,1.69298033]
[1673363574490,0.1119,17344.0,17342.0,0.00024331]
[1673363574748,0.1119,17344.0,17342.0,0.57687331]
[1673363575276,0.361052,17343.0,17342.0,0.57663]
[1673363575543,0.3119,17344.0,17342.0,0.57663]
[1673363575793,0.82274883,17344.0,17342.0,0.71663]
[1673363576069,0.82274883,17344.0,17342.0,0.57663]
[1673363576600,0.3111,17346.0,17342.0,0.57663]
[1673363576601,0.62013822,17345.0,17343.0,0.0085]
[1673363576851,0.62013822,17345.0,17344.0,0.576568]
[1673363577344,0.2,17346.0,17344.0,0.57668431]
[1673363577608,0.80597436,17346.0,17344.0,1.15325231]
[1673363578123,0.80597436,17346.0,17344.0,1.29325231]
[1673363578124,0.001,17345.0,17344.0,1.29325231]
[1673363578381,0.80597436,17346.0,17344.0,1.72878166]
[1673363578644,0.80697436,17346.0,17344.0,1.86878166]
[1673363578930,0.60697436,17346.0,17345.0,0.58411394]
[1673363579157,0.001,17346.0,17345.0,1.73718394]
[1673363579916,0.70112908,17347.0,17345.0,1.73718394]
[1673363580174,0.02294426,17347.0,17346.0,0.00906578]
[1673363580428,0.02294426,17347.0,17346.0,0.719221]
[1673363580684,0.02294426,17347.0,17346.0,1.96177825]
[1673363581194,0.02294426,17347.0,17346.0,0.576501]
[1673363581195,0.66374114,17347.0,17346.0,0.576501]
[1673363581716,0.66374114,17347.0,17346.0,0.594501]
[1673363581717,0.02294426,17347.0,17346.0,0.594501]
[1673363581975,0.02294426,17347.0,17346.0,2.02141871]
[1673363582272,0.02294426,17347.0,17346.0,2.04035511]
[1673363582543,0.25631961,17349.0,17347.0,0.89886866]
[1673363582801,5.02696792,17350.0,17348.0,1.46137]
[1673363583070,5.02696792,17350.0,17349.0,0.43767789]
[1673363583348,0.19566792,17350.0,17349.0,1.96106649]
[1673363583607,0.19566792,17350.0,17349.0,0.98522894]
[1673363583869,0.17206792,17350.0,17349.0,1.87917661]
[1673363584148,0.17206792,17350.0,17349.0,1.28522894]
[1673363584696,0.17206792,17350.0,17349.0,2.02422894]
[1673363584953,0.1502067,17350.0,17349.0,2.06844093]
[1673363585253,0.1502067,17350.0,17349.0,3.35900761]
[1673363585645,0.02294426,17351.0,17350.0,0.9832381]
[1673363585905,0.02294426,17351.0,17350.0,4.67276563]
[1673363586172,0.02294426,17351.0,17350.0,4.89946103]
[1673363586431,0.00769059,17352.0,17351.0,0.8095]
[1673363586697,0.00769059,17352.0,17351.0,3.78436885]
[1673363586954,0.00769059,17352.0,17351.0,3.83183564]
[1673363587459,0.00269059,17352.0,17351.0,3.83183564]
[1673363587712,0.00269059,17352.0,17351.0,3.96983564]
[1673363587983,0.00269059,17352.0,17351.0,5.83183564]
[1673363588224,0.00269059,17352.0,17351.0,5.96983564]
[1673363588483,0.00269059,17352.0,17351.0,5.94323564]
[1673363588743,0.00269059,17352.0,17351.0,5.60945896]
[1673363589273,5.9e-07,17352.0,17351.0,5.7688352]
[1673363589526,0.02294426,17356.0,17351.0,7.08713564]
[1673363589817,0.02294426,17356.0,17355.0,2.40344767]
[1673363590045,0.01794426,17356.0,17355.0,5.2470428]
[1673363590299,0.01794426,17356.0,17355.0,4.68500959]
[1673363590586,0.01794426,17356.0,17355.0,5.99838627]
[1673363590826,0.02306,17361.0,17357.0,0.6095]
[1673363591096,0.02306,17361.0,17360.0,0.2]
[1673363591346,0.02306,17361.0,17360.0,3.48468423]